bitfinex-derivatives/quotes_SOLF0:USTF0_20251107
["timestamp","ask_amount","ask_price","bid_price","bid_amount"]
[1762508176738,3.22,154.63,154.53,3.11]
[1762508177141,3.22,154.63,154.58,8.9351]
[1762508177335,3.22,154.63,154.58,3.11]
[1762508177540,4.79926136,154.7,154.59,0.04359104]
[1762508177541,3.26735353,154.62,154.59,0.04359104]
[1762508177741,3.26201059,154.62,154.59,0.04601001]
[1762508178640,3.26201059,154.62,154.5,3.11]
[1762508178837,3.22,154.62,154.5,3.11]
[1762508179336,3.22,154.59,154.5,3.11]
[1762508179531,3.26153546,154.56,154.45,3.11]
[1762508179736,3.26153546,154.56,154.49,3.11]
[1762508180042,0.04224441,154.54,154.49,3.11]
[1762508180929,0.04224441,154.54,154.49,8.9385]
[1762508181136,0.04224441,154.54,154.5,3.11]
[1762508182238,0.04224441,154.54,154.5,8.9382]
[1762508182447,0.04224441,154.54,154.51,3.11]
[1762508184043,0.04224441,154.54,154.52,8.9374]
[1762508184446,0.04224441,154.54,154.52,3.11]
[1762508185352,0.04224441,154.54,154.52,8.9374]
[1762508185538,0.04224441,154.54,154.52,3.11]
[1762508186047,0.04224441,154.54,154.48,3.11]
[1762508186545,0.04224441,154.54,154.52,3.11]
[1762508187145,0.04224441,154.54,154.5,8.9382]
[1762508187740,0.04224441,154.54,154.51,8.9378]
[1762508187953,0.04224441,154.54,154.52,3.11]
[1762508188355,0.04224441,154.54,154.52,8.9374]
[1762508188655,0.04224441,154.54,154.48,3.11]
[1762508189353,0.04224441,154.54,154.53,3.11]
[1762508193860,5.78916309,154.61,154.53,3.11]
[1762508194158,9.00916309,154.65,154.56,3.11]
[1762508194363,13.89506391,154.64,154.56,3.11]
[1762508194564,4.88590082,154.63,154.56,3.11]
[1762508194855,4.88590082,154.62,154.56,3.11]
[1762508195066,0.0448808,154.61,154.58,3.11]
[1762508196560,0.0448808,154.61,154.59,5.8248]
[1762508197466,0.0448808,154.61,154.58,3.11]
[1762508197663,3.22,154.58,154.47,3.11]
[1762508197961,3.22,154.56,154.47,3.11]
[1762508198166,5.8273,154.53,154.47,3.11]
[1762508198666,5.86984301,154.52,154.47,3.11]
[1762508198870,8.10614845,154.51,154.43,3.11]
[1762508199165,0.04073133,154.49,154.43,3.11]
[1762508199563,0.04073133,154.49,154.43,8.9408]
[1762508200065,0.04073133,154.49,154.44,2.94]
[1762508200863,0.04073133,154.49,154.46,2.94]
[1762508201956,0.04073133,154.49,154.47,5.8292]
[1762508202163,0.04073133,154.49,154.48,2.94]
[1762508203661,7.95506714,154.57,154.48,2.94]
[1762508203964,4.89506714,154.56,154.48,2.94]
[1762508204160,3.06,154.56,154.48,2.94]
[1762508204666,0.04619687,154.54,154.5,8.95893133]
[1762508204866,0.04619687,154.54,154.51,3.09]
[1762508205565,0.04619687,154.54,154.51,8.9178]
[1762508206167,0.04619687,154.54,154.52,3.09]
[1762508208667,3.06619687,154.54,154.5,3.13073133]
[1762508210367,0.04619687,154.54,154.5,3.13073133]
[1762508211568,3.06619687,154.54,154.5,0.04073133]
[1762508211970,3.06619687,154.54,154.5,3.13073133]
[1762508212169,0.04619687,154.54,154.5,3.13073133]
[1762508213075,0.04619687,154.54,154.5,8.95893133]
[1762508213975,0.04619687,154.54,154.51,3.09]
[1762508214175,0.04619687,154.54,154.51,8.9179]
[1762508214374,0.04619687,154.54,154.51,3.09]
[1762508214668,0.04619687,154.54,154.5,0.04073133]
[1762508214669,0.04619687,154.54,154.52,5.8275]
[1762508214866,0.04619687,154.54,154.53,3.09]
[1762508215774,3.02,154.63,154.56,8.9161]
[1762508216074,12.40480491,154.62,154.56,3.09]
[1762508216271,7.9031839,154.61,154.56,3.09]
[1762508216472,3.02,154.61,154.56,3.09]
[1762508216673,0.04382539,154.6,154.57,0.0462464]
[1762508217672,3.06382539,154.6,154.57,0.0462464]
[1762508217973,0.04382539,154.6,154.57,3.1362464]
[1762508218573,0.04382539,154.6,154.57,0.0462464]
[1762508220073,3.06382539,154.6,154.57,0.0462464]
[1762508220277,4.88220023,154.59,154.57,0.0462464]
[1762508220467,3.02,154.58,154.57,0.0462464]
[1762508220666,3.02,154.56,154.49,5.8286]
[1762508220976,3.02,154.56,154.48,3.09]
[1762508221574,3.02,154.56,154.49,8.9186]
[1762508221873,0.04653658,154.54,154.51,0.04068179]
[1762508223368,0.04653658,154.54,154.51,3.13068179]
[1762508224578,3.06653658,154.54,154.51,0.04068179]
[1762508225077,0.04653658,154.54,154.51,3.13068179]
[1762508226067,0.04653658,154.54,154.53,3.09]
[1762508226271,3.02,154.61,154.53,3.09]
[1762508226673,3.02,154.61,154.56,8.9158]
[1762508226977,3.02,154.64,154.57,3.09]
[1762508227173,5.8243,154.61,154.59,0.04816512]
[1762508227373,3.02,154.6,154.58,0.04882126]
[1762508227778,8.8446,154.6,154.58,0.04882126]
[1762508227980,3.02,154.6,154.58,0.04882126]
[1762508228482,0.04903545,154.62,154.58,3.13882126]
[1762508228670,3.06903545,154.62,154.58,3.13882126]
[1762508229281,3.02,154.6,154.58,0.04882126]
[1762508230773,3.02,154.59,154.58,0.04882126]
[1762508231780,7.89368713,154.59,154.58,0.04882126]
[1762508232083,3.02,154.59,154.58,0.04882126]
[1762508234175,2.95,154.61,154.58,0.04882126]
[1762508234575,0.04903545,154.62,154.58,0.04882126]
[1762508234576,2.95,154.59,154.58,0.04882126]
[1762508234978,2.99903545,154.62,154.58,0.04882126]
[1762508235279,4.87447127,154.61,154.58,3.03882126]
[1762508235478,0.04903545,154.62,154.58,3.03882126]
[1762508235882,2.99903545,154.62,154.58,3.03882126]
[1762508236273,2.99903545,154.62,154.58,0.04882126]
[1762508236582,2.95,154.6,154.58,0.04882126]
[1762508236784,2.95,154.59,154.58,0.04882126]
[1762508237480,2.95,154.61,154.58,0.04882126]
[1762508239378,0.04903545,154.62,154.58,3.03882126]
[1762508239584,0.04903545,154.62,154.59,2.99]
[1762508241081,0.04903545,154.62,154.58,0.04882126]
[1762508241082,0.04903545,154.62,154.6,8.8145]
[1762508242390,0.04903545,154.62,154.61,2.99]
[1762508244588,8.14691825,154.67,154.61,8.8141]
[1762508244988,8.14691825,154.67,154.61,2.99]
[1762508245489,2.32481825,154.67,154.61,2.99]
[1762508245797,0.04658037,154.66,154.62,0.04170732]
[1762508246589,2.99658037,154.66,154.62,0.04170732]
[1762508247396,7.81989864,154.65,154.62,0.04170732]
[1762508247597,2.95,154.65,154.62,0.04170732]
[1762508247799,2.95,154.64,154.62,0.04170732]
[1762508248299,2.99658037,154.66,154.62,3.03170732]
[1762508248888,0.04658037,154.66,154.62,3.03170732]
[1762508249796,0.04658037,154.66,154.64,8.813]
[1762508249996,0.04658037,154.66,154.65,2.99]
[1762508250200,2.95,154.72,154.65,2.99]
[1762508250585,2.95,154.72,154.65,8.8124]
[1762508251303,2.99278998,154.7,154.67,0.04136121]
[1762508251501,2.99610715,154.7,154.67,0.04748284]
[1762508253099,2.95,154.69,154.67,0.04748284]
[1762508253399,8.7713,154.69,154.67,0.04748284]
[1762508253790,2.95,154.68,154.67,0.04748284]
[1762508257398,0.04610715,154.7,154.67,0.04748284]
[1762508257607,0.04610715,154.7,154.67,3.03748284]
[1762508258103,0.04610715,154.7,154.68,5.8215]
[1762508258294,0.04610715,154.7,154.68,8.8115]
[1762508258694,0.04610715,154.7,154.68,2.99]
[1762508259303,0.04610715,154.7,154.68,8.8115]
[1762508259505,0.04610715,154.7,154.69,3.0]
[1762508262599,2.94,154.78,154.72,3.0]
[1762508262896,8.7581,154.78,154.72,3.0]
[1762508263101,2.94,154.78,154.72,3.0]
[1762508263492,0.04683148,154.77,154.73,3.04181528]
[1762508263698,2.98851682,154.77,154.73,3.04181528]
[1762508264401,2.98851682,154.77,154.73,0.04181528]
[1762508264798,3.16,154.75,154.73,0.04181528]
[1762508267299,3.16,154.74,154.73,0.04181528]
[1762508267504,3.16,154.73,154.65,3.25]
[1762508267904,8.9806,154.71,154.65,3.25]
[1762508268606,8.9814,154.69,154.66,0.04148727]
[1762508268808,0.04264884,154.7,154.66,0.04291592]
[1762508268809,3.16,154.68,154.66,0.04291592]
[1762508269405,3.16,154.67,154.57,3.25]
[1762508270512,0.04489393,154.64,154.6,3.29267163]
[1762508270905,3.20489393,154.64,154.6,0.04267163]
[1762508271402,3.20489393,154.64,154.6,9.11717163]
[1762508271710,0.04489393,154.64,154.6,3.29267163]
[1762508271906,0.04489393,154.64,154.62,5.8237]
[1762508272411,0.04489393,154.64,154.61,9.0741]
[1762508272708,0.04489393,154.64,154.61,3.25]
[1762508275011,3.20489393,154.64,154.6,0.04267163]
[1762508275223,3.20489393,154.64,154.6,3.29267163]
[1762508275906,0.04489393,154.64,154.6,3.29267163]
[1762508276514,0.04489393,154.64,154.61,3.25]
[1762508277809,0.04489393,154.64,154.61,9.0741]
[1762508279512,0.04489393,154.64,154.62,9.0736]
[1762508279714,0.04489393,154.64,154.63,3.25]
[1762508280208,4.87421684,154.69,154.6,3.29267163]
[1762508280407,3.16,154.67,154.6,3.25]
[1762508280814,3.16,154.66,154.6,3.25]
[1762508281013,3.16,154.66,154.55,3.25]
[1762508281214,3.16,154.66,154.59,0.04652258]
[1762508281215,0.04655698,154.62,154.59,0.04652258]
[1762508281417,0.04655698,154.62,154.59,3.29652258]
[1762508281617,0.04655698,154.62,154.61,3.25]
[1762508282118,3.16,154.7,154.62,3.25]
[1762508282325,6.75949221,154.69,154.62,3.25]
[1762508282625,1.88432805,154.69,154.62,3.25]
[1762508283024,1.88432805,154.71,154.64,3.25]
[1762508283214,0.04332978,154.69,154.66,3.29350834]
[1762508283717,0.04332978,154.69,154.67,3.25]
[1762508284122,0.04332978,154.69,154.67,9.0719]
[1762508284620,0.04332978,154.69,154.67,3.25]
[1762508286019,0.04332978,154.69,154.67,9.0717]
[1762508286624,0.04332978,154.69,154.68,3.25]
[1762508287129,0.04332978,154.69,154.66,3.29350834]
[1762508289332,0.04332978,154.69,154.66,0.04350834]
[1762508289333,3.20332978,154.69,154.66,0.04350834]
[1762508289836,0.04332978,154.69,154.66,3.29350834]
[1762508290540,0.04332978,154.69,154.66,9.11570834]
[1762508291339,0.04332978,154.69,154.67,3.25]
[1762508291744,3.20332978,154.69,154.66,0.04350834]
[1762508292042,9.02462978,154.69,154.66,0.04350834]
[1762508292239,0.04332978,154.69,154.66,3.29350834]
[1762508293531,3.20332978,154.69,154.66,0.04350834]
[1762508293839,0.04332978,154.69,154.66,3.29350834]
[1762508294036,3.20332978,154.69,154.66,3.29350834]
[1762508295838,7.92683405,154.68,154.66,0.04350834]
[1762508296045,0.04332978,154.69,154.59,3.06]
[1762508296046,3.04,154.66,154.59,3.06]
[1762508296239,3.04,154.64,154.58,5.8251]
[1762508296445,3.04,154.64,154.56,3.06]
[1762508297143,5.8236,154.63,154.57,5.8254]
[1762508297339,3.08903813,154.62,154.58,0.04882732]
[1762508297537,3.08365001,154.62,154.58,0.04777888]
[1762508298035,3.04,154.61,154.58,0.04777888]
[1762508298342,3.08365001,154.62,154.58,3.10777888]
[1762508298743,3.08365001,154.62,154.58,0.04777888]
[1762508301040,0.04365001,154.62,154.59,3.06]
[1762508301741,3.08365001,154.62,154.58,0.04777888]
[1762508302237,8.90765001,154.62,154.58,0.04777888]
[1762508302444,3.04,154.61,154.58,0.04777888]
[1762508305149,3.04,154.61,154.58,5.87307888]
[1762508305845,3.04,154.61,154.58,0.04777888]
[1762508306543,0.04365001,154.62,154.59,3.06]
[1762508307750,0.04365001,154.62,154.61,3.06]
[1762508308453,8.8619,154.68,154.62,5.8235]
[1762508308944,3.04,154.68,154.64,5.823]
[1762508309139,3.04,154.68,154.64,8.883]
[1762508309540,3.08260169,154.68,154.64,8.93153448]
[1762508310454,0.04260169,154.68,154.67,3.06]
[1762508312346,0.04260169,154.68,154.64,3.10853448]
[1762508312550,3.08260169,154.68,154.64,0.04853448]
[1762508313255,3.04,154.66,154.64,0.04853448]
[1762508314547,0.04260169,154.68,154.64,3.10853448]
[1762508314746,3.08260169,154.68,154.64,3.10853448]
[1762508314948,4.86269012,154.67,154.64,0.04853448]
[1762508315144,8.90430169,154.68,154.64,0.04853448]
[1762508315666,0.04260169,154.68,154.64,3.10853448]
[1762508316359,0.04260169,154.68,154.65,8.8826]
[1762508317051,0.04260169,154.68,154.65,3.06]
[1762508317247,3.08260169,154.68,154.64,0.04853448]
[1762508317662,3.08260169,154.68,154.64,3.10853448]
[1762508318453,0.04260169,154.68,154.66,3.06]
[1762508319364,0.04260169,154.68,154.66,8.8823]
[1762508319565,0.04260169,154.68,154.67,3.11]
[1762508327166,3.2,154.76,154.72,2.99]
[1762508327363,4.85582176,154.75,154.72,2.99]
[1762508327563,3.2,154.76,154.71,5.8204]
[1762508327768,3.2,154.76,154.69,2.99]
[1762508327966,9.0187,154.76,154.69,2.99]
[1762508328267,10.23740108,154.79,154.71,0.04549466]
[1762508328268,3.24128797,154.74,154.71,0.04549466]
[1762508331764,9.06068797,154.74,154.71,0.04549466]
[1762508331970,3.2,154.73,154.71,0.04549466]
[1762508334471,9.0198,154.73,154.71,0.04549466]
[1762508336070,3.2,154.72,154.71,0.04549466]
[1762508338774,3.24128797,154.74,154.71,0.04549466]
[1762508339974,3.2,154.73,154.71,0.04549466]
[1762508340680,3.2,154.71,154.64,2.99]
[1762508341079,3.2,154.71,154.66,5.8223]
[1762508341579,2.94249066,154.72,154.64,2.99]
[1762508341580,3.2,154.68,154.67,0.04489259]
[1762508341780,3.2,154.68,154.61,2.99]
[1762508342072,5.8224,154.66,154.61,8.8139]
[1762508342273,3.2,154.65,154.57,2.99]
[1762508342772,3.2,154.62,154.59,0.04886529]
[1762508343174,0.04610561,154.63,154.59,3.03886529]
[1762508343374,4.85786953,154.69,154.61,2.99]
[1762508343583,7.8028925,154.75,154.56,2.94249066]
[1762508343584,6.14249066,154.74,154.66,2.99]
[1762508343787,3.2,154.74,154.66,2.99]
[1762508344084,9.0196,154.74,154.68,5.8215]
[1762508344482,3.24665251,154.73,154.69,0.0491826]
[1762508345083,3.2,154.71,154.69,0.0491826]
[1762508345885,3.2,154.7,154.69,0.0491826]
[1762508346794,3.2,154.7,154.61,2.99]
[1762508346998,9.0218,154.68,154.61,2.99]
[1762508347286,2.94249066,154.7,154.48,111.80799369]
[1762508347287,3.2,154.66,154.57,2.99]
[1762508347488,2.94249066,154.67,154.57,2.99]
[1762508347489,3.2,154.63,154.57,2.99]
[1762508347892,9.06841055,154.62,154.58,0.04643972]
[1762508348196,3.2,154.61,154.58,0.04948071]
[1762508349689,0.04148368,154.62,154.58,3.03948071]
[1762508350485,0.04148368,154.62,154.6,2.99]
[1762508352194,0.04148368,154.62,154.61,2.99]
[1762508354490,0.04148368,154.62,154.59,3.17]
[1762508355191,3.27148368,154.62,154.58,0.04948071]
[1762508355589,3.27148368,154.62,154.58,3.21948071]
[1762508355789,0.04148368,154.62,154.58,3.21948071]
[1762508356989,0.04148368,154.62,154.58,9.04478071]
[1762508357192,0.04148368,154.62,154.58,0.04948071]
[1762508357193,3.27148368,154.62,154.58,0.04948071]
[1762508357690,3.23,154.59,154.58,0.04948071]
[1762508357893,3.23,154.59,154.51,3.17]
[1762508358191,9.0558,154.57,154.51,3.17]
[1762508358398,3.23,154.57,154.47,3.17]
[1762508358785,3.23,154.53,154.47,3.17]
[1762508358991,3.27152116,154.52,154.48,0.04502394]
[1762508359190,3.27152116,154.52,154.45,3.17]
[1762508359191,3.23,154.52,154.45,3.17]
[1762508359491,0.04702428,154.52,154.48,3.21870555]
[1762508359701,0.04476733,154.52,154.48,3.21306663]
[1762508360289,0.04476733,154.52,154.49,3.17]
[1762508361192,0.04476733,154.52,154.5,3.17]
[1762508362497,0.04476733,154.52,154.48,3.21306663]
[1762508363085,0.04476733,154.52,154.5,3.17]
[1762508365093,0.04476733,154.52,154.5,8.9982]
[1762508365292,0.04476733,154.52,154.51,3.17]
[1762508365696,0.04476733,154.52,154.5,5.8282]
[1762508365902,0.04476733,154.52,154.5,8.9982]
[1762508366500,0.04476733,154.52,154.51,3.17]
[1762508370298,5.8251,154.59,154.54,3.17]
[1762508370802,9.0551,154.59,154.54,3.17]
[1762508370998,3.23,154.59,154.54,3.17]
[1762508371196,0.04648463,154.58,154.55,3.17]
[1762508371506,0.04648463,154.58,154.55,3.21094214]
[1762508371996,0.04648463,154.58,154.57,3.17]
[1762508373098,0.04648463,154.58,154.55,3.21094214]
[1762508374599,3.27648463,154.58,154.55,0.04094214]
[1762508375396,3.23,154.56,154.49,3.17]
[1762508376097,9.0564,154.56,154.51,8.9979]
[1762508376597,0.04088721,154.55,154.52,0.0425966]
[1762508376798,9.09748721,154.55,154.52,0.0425966]
[1762508377000,3.27088721,154.55,154.52,0.0425966]
[1762508377201,0.04088721,154.55,154.52,3.2125966]
[1762508377503,0.04088721,154.55,154.52,0.0425966]
[1762508377504,3.27088721,154.55,154.52,0.0425966]
[1762508379103,3.05,154.53,154.52,0.0425966]
[1762508380102,3.05,154.52,154.46,3.25]
[1762508380318,3.05,154.52,154.44,5.8305]
[1762508380504,8.8778,154.52,154.44,9.0805]
[1762508380700,3.05,154.52,154.44,9.0805]
[1762508381005,0.04420313,154.5,154.46,3.29454978]
[1762508381404,5.87260313,154.5,154.46,3.29454978]
[1762508381606,8.92260313,154.5,154.46,3.29454978]
[1762508381906,3.05,154.49,154.46,0.04454978]
[1762508384303,3.02420313,154.5,154.46,3.08454978]
[1762508384710,3.02420313,154.5,154.46,0.04454978]
[1762508384912,0.04420313,154.5,154.46,3.08454978]
[1762508385714,0.04420313,154.5,154.47,3.04]
[1762508386211,0.04420313,154.5,154.47,8.8693]
[1762508387507,0.04420313,154.5,154.48,3.04]
[1762508388512,0.04420313,154.5,154.49,3.04]
[1762508389415,0.04420313,154.5,154.47,3.04]
[1762508389716,3.02420313,154.5,154.47,3.04]
[1762508390013,3.02420313,154.5,154.46,0.04454978]
[1762508390916,3.02420313,154.5,154.46,3.08454978]
[1762508391316,3.02420313,154.5,154.46,0.04454978]
[1762508392514,2.98,154.47,154.39,3.04]
[1762508392910,2.98,154.47,154.36,5.8335]
[1762508393219,2.98,154.45,154.36,3.04]
[1762508393614,0.04260687,154.42,154.39,0.04163917]
[1762508394615,0.04260687,154.42,154.39,3.08163917]
[1762508395317,0.04260687,154.42,154.39,8.91413917]
[1762508396324,0.04260687,154.42,154.39,3.08163917]
[1762508397218,3.02260687,154.42,154.39,0.04163917]
[1762508397809,3.02260687,154.42,154.33,5.8346]
[1762508398013,3.02260687,154.42,154.33,3.04]
[1762508398220,8.85420687,154.42,154.33,3.04]
[1762508398422,3.02260687,154.42,154.34,5.8343]
[1762508398617,5.8323,154.4,154.33,3.04]
[1762508398923,0.04704346,154.38,154.33,3.04]
[1762508399222,3.02704346,154.38,154.28,4.42703596]
[1762508399524,0.04549841,154.35,154.31,3.04]
[1762508399736,0.04549841,154.35,154.33,3.04]
[1762508400516,0.04549841,154.35,154.33,8.8746]
[1762508400717,0.04549841,154.35,154.34,3.04]
[1762508402228,3.02549841,154.35,154.3,3.04]
[1762508402526,0.04277526,154.34,154.3,3.04]
[1762508402823,0.04277526,154.34,154.3,7.46703596]
[1762508403024,2.98,154.43,154.33,3.04]
[1762508403324,2.98,154.43,154.34,3.04]
[1762508403523,5.83,154.46,154.39,3.04]
[1762508403723,2.98,154.47,154.39,3.04]
[1762508403930,4.81135162,154.46,154.39,3.04]
[1762508404116,0.04100245,154.44,154.42,3.04]
[1762508405328,3.02100245,154.44,154.41,0.04247663]
[1762508405728,8.85170245,154.44,154.41,0.04247663]
[1762508406126,2.98,154.43,154.36,3.04]
[1762508406325,2.98,154.42,154.36,3.04]
[1762508406824,5.8311,154.43,154.36,3.04]
[1762508407227,0.0462455,154.41,154.36,3.04]
[1762508407526,0.0462455,154.41,154.38,3.04]
[1762508408025,0.0462455,154.41,154.4,3.04]
[1762508408224,0.04760458,154.42,154.4,3.04]
[1762508408424,0.04422121,154.43,154.4,8.8719]
[1762508408628,0.04422121,154.43,154.4,3.04]
[1762508408824,0.04422121,154.43,154.36,62.0]
[1762508409019,3.02422121,154.43,154.37,8.8731]
[1762508409223,0.04421697,154.42,154.38,3.04]
[1762508409925,0.04421697,154.42,154.38,8.8727]
[1762508410234,0.04421697,154.42,154.39,3.04]
[1762508410431,0.04421697,154.42,154.32,65.62]
[1762508410432,0.04421697,154.42,154.33,3.04]
[1762508410630,0.04690351,154.39,154.33,3.04]
[1762508410824,0.04690351,154.39,154.38,3.04]
[1762508412329,0.04690351,154.39,154.38,4.92990843]
[1762508412639,0.04690351,154.39,154.38,3.04]
[1762508413435,0.04690351,154.39,154.35,3.04]
[1762508413634,0.0469704,154.39,154.35,3.04]
[1762508414437,0.0469704,154.39,154.36,9.0335]
[1762508414743,0.04689388,154.39,154.36,3.2]
[1762508417933,0.04689388,154.39,154.36,9.0335]
[1762508418135,0.04689388,154.39,154.37,3.2]
[1762508419231,0.04689388,154.39,154.37,9.0331]
[1762508419433,0.04689388,154.39,154.38,3.2]
[1762508420739,3.12,154.48,154.4,9.032]
[1762508421626,3.16340039,154.46,154.42,0.04100715]
[1762508422229,3.12,154.45,154.42,0.04100715]
[1762508422433,3.12,154.45,154.34,3.2]
[1762508422634,5.8322,154.4,154.34,3.2]
[1762508422931,3.12,154.43,154.34,3.2]
[1762508423440,0.04973838,154.4,154.35,3.2]
[1762508424438,0.04973838,154.4,154.37,3.2]
[1762508426732,3.16973838,154.4,154.32,3.2]
[1762508426932,0.04973838,154.4,154.36,3.2]
[1762508427537,0.04973838,154.4,154.37,3.2]
[1762508428243,5.88193838,154.4,154.37,3.2]
[1762508428444,9.00193838,154.4,154.34,3.2]
[1762508429642,3.12,154.39,154.34,3.2]
[1762508430132,5.88193838,154.4,154.34,3.2]
[1762508430334,0.04973838,154.4,154.34,3.2]
[1762508431038,0.04973838,154.4,154.36,3.2]
[1762508431237,0.04355437,154.4,154.36,3.2]
[1762508431441,0.04355437,154.4,154.37,3.2]
[1762508431641,3.16355437,154.4,154.3,3.2]
[1762508431836,0.04336745,154.37,154.3,3.2]
[1762508432146,0.04336745,154.37,154.36,3.2]
[1762508432543,5.79432234,154.45,154.36,3.2]
[1762508432544,3.12,154.48,154.38,3.2]
[1762508432841,3.12,154.46,154.38,3.2]
[1762508433039,3.12,154.41,154.34,3.2]
[1762508433236,4.85084924,154.44,154.34,3.2]
[1762508433436,0.04895727,154.41,154.38,3.2]
[1762508433835,0.04895727,154.41,154.37,0.04407658]
[1762508433836,0.04895727,154.41,154.4,3.2]
[1762508434442,0.04895727,154.41,154.4,5.08941695]
[1762508435145,0.04895727,154.41,154.4,3.2]
[1762508436349,0.04895727,154.41,154.4,5.08941695]
[1762508436939,0.04895727,154.41,154.4,3.2]
[1762508437440,0.04895727,154.41,154.4,5.08941695]
[1762508438440,0.04895727,154.41,154.4,3.2]
[1762508439147,0.04895727,154.41,154.4,5.08941695]
[1762508439838,0.04895727,154.41,154.39,3.08]
[1762508441148,0.04895727,154.41,154.4,3.08]
[1762508441547,0.04895727,154.41,154.37,0.04407658]
[1762508441548,3.02895727,154.41,154.37,0.04407658]
[1762508441745,3.02895727,154.41,154.37,3.12407658]
[1762508442344,0.04895727,154.41,154.37,3.12407658]
[1762508442853,0.04895727,154.41,154.39,3.08]
[1762508444648,0.04895727,154.41,154.4,3.02]
[1762508445250,0.04895727,154.41,154.38,3.02]
[1762508445855,0.04895727,154.41,154.38,8.8528]
[1762508446553,0.04895727,154.41,154.38,3.02]
[1762508447148,0.04895727,154.41,154.4,3.02]
[1762508447346,0.04895727,154.41,154.38,3.02]
[1762508448261,0.04895727,154.41,154.4,3.02]
[1762508449149,0.04895727,154.41,154.39,7.72181695]
[1762508449150,0.04895727,154.41,154.38,3.02]
[1762508449551,0.04895727,154.41,154.4,3.02]
[1762508452058,10.11138084,154.51,154.42,3.02]
[1762508452270,3.14,154.49,154.42,4.90941695]
[1762508452473,3.14,154.47,154.42,3.02]
[1762508453074,0.04115726,154.46,154.43,0.04618763]
[1762508454171,3.18115726,154.46,154.43,0.04618763]
[1762508454377,0.04115726,154.46,154.43,3.06618763]
[1762508454577,0.04115726,154.46,154.45,3.02]
[1762508454872,3.18115726,154.46,154.43,0.04618763]
[1762508455479,3.14,154.45,154.43,0.04618763]
[1762508455669,3.14,154.44,154.43,0.04618763]
[1762508457175,0.04115726,154.46,154.43,0.04618763]
[1762508457176,0.04115726,154.46,154.43,3.06618763]
[1762508457573,0.04115726,154.46,154.43,8.89708763]
[1762508457774,0.04115726,154.46,154.44,3.02]
[1762508459574,3.14,154.54,154.45,3.02]
[1762508459771,9.31334456,154.53,154.47,3.02]
[1762508459971,3.14,154.54,154.47,3.02]
[1762508460166,3.14,154.54,154.49,3.02]
[1762508460574,0.04396401,154.53,154.51,3.02]
[1762508460765,0.04396401,154.53,154.5,0.04811944]
[1762508460971,3.18396401,154.53,154.5,0.04811944]
[1762508461275,0.04396401,154.53,154.5,3.06811944]
[1762508462377,0.04396401,154.53,154.52,3.02]
[1762508462676,3.14,154.57,154.52,3.02]
[1762508462677,3.14,154.6,154.52,3.02]
[1762508462979,9.30093385,154.59,154.52,3.02]
[1762508463173,4.83342903,154.58,154.52,3.02]
[1762508463481,3.14,154.6,154.52,3.02]
[1762508463777,0.0435404,154.57,154.54,3.02]
[1762508464175,0.0435404,154.57,154.55,3.02]
[1762508464875,0.0435404,154.57,154.55,8.8463]
[1762508465082,0.0035404,154.57,154.56,3.02]
[1762508465278,12.42152379,154.65,154.56,3.02]
[1762508465574,3.14,154.63,154.56,3.02]
[1762508465779,3.14,154.63,154.53,3.02]
[1762508465980,6.09163838,154.61,154.53,3.02]
[1762508466275,3.18410648,154.59,154.55,0.04776179]
[1762508466482,3.18410648,154.59,154.55,3.06323319]
[1762508466679,9.00920648,154.59,154.55,3.06323319]
[1762508466875,3.14,154.58,154.55,0.04323319]
[1762508467375,3.14,154.58,154.48,3.02]
[1762508467376,5.8267,154.55,154.49,3.02]
[1762508468178,0.04259894,154.54,154.5,3.06880865]
[1762508468381,9.00959894,154.54,154.5,0.04880865]
[1762508468779,3.18259894,154.54,154.5,3.06880865]
[1762508470082,3.18259894,154.54,154.5,0.04880865]
[1762508470387,3.18259894,154.54,154.5,3.06880865]